[Event "*** Titled Tuesday Blitz"]
[Site "Chess.com"]
[Date "2019.05.07"]
[Round "2"]
[White "HouseOfDurin"]
[Black "LarissaSteenbekkers"]
[Result "1-0"]
[WhiteElo "1966"]
[BlackElo "1964"]
[TimeControl "180+2"]
[EndTime "13:23:20 PDT"]
[Termination "HouseOfDurin won by checkmate"]

1. d4 {[%clk 0:03:01.9]} 1... Nf6 {[%clk 0:02:58.9]} 2. Bg5 {[%clk 0:03:02.7]}
2... c5 {[%clk 0:02:56.3]} 3. Bxf6 {[%clk 0:03:03.2]} 3... gxf6 {[%clk
0:02:55.7]} 4. c3 {[%clk 0:03:03.1]} 4... d5 {[%clk 0:02:54.2]} 5. g3 {[%clk
0:02:57.9]} 5... e6 {[%clk 0:02:53.4]} 6. Bg2 {[%clk 0:02:58.2]} 6... Nc6 {[%clk
0:02:51.7]} 7. e3 {[%clk 0:02:58.5]} 7... Bd7 {[%clk 0:02:49.4]} 8. Ne2 {[%clk
0:02:55.6]} 8... Be7 {[%clk 0:02:47.9]} 9. O-O {[%clk 0:02:43.6]} 9... O-O
{[%clk 0:02:46.4]} 10. Nf4 {[%clk 0:02:26.7]} 10... Kh8 {[%clk 0:02:42.8]} 11.
Nd2 {[%clk 0:02:18.7]} 11... Bd6 {[%clk 0:02:28.8]} 12. dxc5 {[%clk 0:01:58.6]}
12... Bxc5 {[%clk 0:02:27.9]} 13. Qh5 {[%clk 0:01:59.1]} 13... Ne7 {[%clk
0:02:17.7]} 14. Nb3 {[%clk 0:01:50.6]} 14... Bd6 {[%clk 0:02:15.9]} 15. Qf3
{[%clk 0:01:18.6]} 15... Bc6 {[%clk 0:02:14.1]} 16. Nd4 {[%clk 0:01:11.6]} 16...
Bd7 {[%clk 0:02:10.5]} 17. Nh5 {[%clk 0:00:58.7]} 17... f5 {[%clk 0:02:01.5]}
18. Rfd1 {[%clk 0:00:45.6]} 18... Ng6 {[%clk 0:01:58.6]} 19. Qe2 {[%clk
0:00:45.4]} 19... Qg5 {[%clk 0:01:50.3]} 20. Nf4 {[%clk 0:00:45.3]} 20... Rg8
{[%clk 0:01:37.2]} 21. Nf3 {[%clk 0:00:44.1]} 21... Qf6 {[%clk 0:01:31.7]} 22.
Nxg6+ {[%clk 0:00:44]} 22... Rxg6 {[%clk 0:01:24.3]} 23. c4 {[%clk 0:00:45.3]}
23... Bc6 {[%clk 0:01:21.5]} 24. Nd4 {[%clk 0:00:45.8]} 24... Rag8 {[%clk
0:01:10]} 25. Nxc6 {[%clk 0:00:46.2]} 25... bxc6 {[%clk 0:01:08.8]} 26. cxd5
{[%clk 0:00:47]} 26... cxd5 {[%clk 0:01:08.7]} 27. Qa6 {[%clk 0:00:47.7]} 27...
Be5 {[%clk 0:01:06.4]} 28. Qxa7 {[%clk 0:00:43.5]} 28... h5 {[%clk 0:01:04.5]}
29. Rac1 {[%clk 0:00:19.2]} 29... h4 {[%clk 0:01:01.9]} 30. Rc2 {[%clk
0:00:18.9]} 30... Bxb2 {[%clk 0:00:52.2]} 31. Rb1 {[%clk 0:00:18.6]} 31... Be5
{[%clk 0:00:50.9]} 32. Rb7 {[%clk 0:00:19.4]} 32... R8g7 {[%clk 0:00:49.8]} 33.
Qa8+ {[%clk 0:00:19.5]} 33... Kh7 {[%clk 0:00:47.1]} 34. Rc8 {[%clk 0:00:20.2]}
34... hxg3 {[%clk 0:00:39]} 35. Rh8# {[%clk 0:00:19.8]} 1-0

[Event "*** Titled Tuesday Blitz"]
[Site "Chess.com"]
[Date "2019.05.07"]
[Round "2"]
[White "Alexander_Moskalenko"]
[Black "Frolik67"]
[Result "1-0"]
[WhiteElo "2866"]
[BlackElo "2599"]
[TimeControl "180+2"]
[EndTime "13:23:21 PDT"]
[Termination "Alexander_Moskalenko won by resignation"]

1. e4 {[%clk 0:02:54]} 1... e6 {[%clk 0:02:57.9]} 2. d4 {[%clk 0:02:54.3]} 2...
d5 {[%clk 0:02:57.9]} 3. Nd2 {[%clk 0:02:56.2]} 3... Nf6 {[%clk 0:02:57.8]} 4.
Bd3 {[%clk 0:02:44]} 4... c5 {[%clk 0:02:56.3]} 5. c3 {[%clk 0:02:42]} 5... Nc6
{[%clk 0:02:56.8]} 6. Ngf3 {[%clk 0:02:40.7]} 6... Be7 {[%clk 0:02:53]} 7. O-O
{[%clk 0:02:33.6]} 7... O-O {[%clk 0:02:53.1]} 8. e5 {[%clk 0:02:22.6]} 8... Ng4
{[%clk 0:02:43.7]} 9. h3 {[%clk 0:02:04.2]} 9... Nh6 {[%clk 0:02:41.2]} 10. dxc5
{[%clk 0:02:01]} 10... Bxc5 {[%clk 0:02:40.3]} 11. b4 {[%clk 0:02:02.2]} 11...
Bb6 {[%clk 0:02:40.3]} 12. a4 {[%clk 0:02:00.2]} 12... Bc7 {[%clk 0:02:39.7]}
13. Re1 {[%clk 0:01:55.2]} 13... f5 {[%clk 0:02:39.2]} 14. b5 {[%clk 0:01:37.9]}
14... Ne7 {[%clk 0:02:39.7]} 15. Ba3 {[%clk 0:01:39.8]} 15... Nf7 {[%clk
0:02:38.3]} 16. c4 {[%clk 0:01:38.7]} 16... Re8 {[%clk 0:02:33.8]} 17. Qb3
{[%clk 0:01:39.1]} 17... b6 {[%clk 0:02:32]} 18. Rad1 {[%clk 0:01:40.3]} 18...
Bb7 {[%clk 0:02:32.7]} 19. a5 {[%clk 0:01:33.7]} 19... bxa5 {[%clk 0:02:32.6]}
20. c5 {[%clk 0:01:34.3]} 20... Ng6 {[%clk 0:02:29]} 21. c6 {[%clk 0:01:34.5]}
21... Bc8 {[%clk 0:02:29.1]} 22. Bc5 {[%clk 0:01:24.8]} 22... Nfxe5 {[%clk
0:02:25.3]} 23. Nxe5 {[%clk 0:01:26]} 23... Nxe5 {[%clk 0:02:25.9]} 24. Bc2
{[%clk 0:01:27.1]} 24... Qg5 {[%clk 0:02:19.9]} 25. Bd4 {[%clk 0:01:22]} 25...
Ng6 {[%clk 0:02:07.9]} 26. Nf3 {[%clk 0:01:22.9]} 26... Qf4 {[%clk 0:02:03.6]}
27. Qc3 {[%clk 0:01:24.1]} 27... Qh6 {[%clk 0:01:41.9]} 28. Bxf5 {[%clk
0:01:22.6]} 28... Rf8 {[%clk 0:01:22.6]} 29. Bxg6 {[%clk 0:01:18.3]} 29... Qxg6
{[%clk 0:01:22.3]} 30. Ne5 {[%clk 0:01:19.9]} 30... Qf5 {[%clk 0:01:16.3]} 31.
Rd3 {[%clk 0:01:17.1]} 31... Bd6 {[%clk 0:01:13.3]} 32. Rf3 {[%clk 0:01:16.9]}
32... Qh5 {[%clk 0:01:10.9]} 33. Rxf8+ {[%clk 0:01:16.9]} 33... Bxf8 {[%clk
0:01:12.8]} 34. Qxa5 {[%clk 0:01:15]} 34... Qf5 {[%clk 0:01:10.1]} 35. b6 {[%clk
0:01:14.6]} 35... Rb8 {[%clk 0:01:05.4]} 36. Qxa7 {[%clk 0:01:13]} 36... Bd6
{[%clk 0:01:04.4]} 37. c7 {[%clk 0:01:14.4]} 37... Rb7 {[%clk 0:00:56.8]} 38.
Qa8 {[%clk 0:01:14.7]} 38... Qf8 {[%clk 0:00:58.4]} 39. Qa4 {[%clk 0:01:07.2]}
39... Bb4 {[%clk 0:00:50.6]} 40. Ra1 {[%clk 0:01:02.2]} 40... Bd6 {[%clk
0:00:50.5]} 41. Qc6 {[%clk 0:01:02.4]} 41... Bxe5 {[%clk 0:00:50.5]} 42. Bxe5
{[%clk 0:01:04.3]} 42... h6 {[%clk 0:00:51.7]} 43. Ra8 {[%clk 0:01:04]} 43...
Kf7 {[%clk 0:00:50]} 44. Bd6 {[%clk 0:01:05]} 44... Qg8 {[%clk 0:00:45.1]} 45.
Bc5 {[%clk 0:01:06.2]} 45... Kg6 {[%clk 0:00:45.6]} 46. Qxb7 {[%clk 0:01:06.3]}
46... Qe8 {[%clk 0:00:44.6]} 47. Qxc8 {[%clk 0:01:06]} 47... Qb5 {[%clk
0:00:45.4]} 48. Qe8+ {[%clk 0:01:07.5]} 1-0

[Event "*** Titled Tuesday Blitz"]
[Site "Chess.com"]
[Date "2019.05.07"]
[Round "2"]
[White "Micki-taryan"]
[Black "xamax2000"]
[Result "0-1"]
[WhiteElo "3036"]
[BlackElo "2609"]
[TimeControl "180+2"]
[EndTime "13:23:27 PDT"]
[Termination "xamax2000 won by resignation"]

1. d4 {[%clk 0:03:01.9]} 1... Nf6 {[%clk 0:02:55.7]} 2. Nf3 {[%clk 0:02:58.2]}
2... d5 {[%clk 0:02:51.4]} 3. c4 {[%clk 0:02:58.5]} 3... c6 {[%clk 0:02:51.2]}
4. Nc3 {[%clk 0:02:57.5]} 4... dxc4 {[%clk 0:02:51.4]} 5. a4 {[%clk 0:02:57.1]}
5... e6 {[%clk 0:02:51.7]} 6. e4 {[%clk 0:02:56.1]} 6... c5 {[%clk 0:02:53.2]}
7. d5 {[%clk 0:02:55.6]} 7... exd5 {[%clk 0:02:42.9]} 8. exd5 {[%clk 0:02:57.5]}
8... Bd6 {[%clk 0:02:42.6]} 9. Bxc4 {[%clk 0:02:57.8]} 9... O-O {[%clk
0:02:43.6]} 10. O-O {[%clk 0:02:58.9]} 10... Bg4 {[%clk 0:02:44.1]} 11. h3
{[%clk 0:02:59.5]} 11... Bh5 {[%clk 0:02:44.1]} 12. Re1 {[%clk 0:02:49.2]} 12...
Nbd7 {[%clk 0:02:38.1]} 13. Nb5 {[%clk 0:02:32.6]} 13... Ne5 {[%clk 0:02:26.4]}
14. Be2 {[%clk 0:02:28.9]} 14... Bg6 {[%clk 0:02:08.2]} 15. Nxd6 {[%clk
0:02:19.6]} 15... Qxd6 {[%clk 0:02:10.1]} 16. Nxe5 {[%clk 0:02:13]} 16... Qxe5
{[%clk 0:02:12]} 17. Bf3 {[%clk 0:02:13.7]} 17... Qd6 {[%clk 0:02:11.3]} 18. Bg5
{[%clk 0:02:11.2]} 18... Rfe8 {[%clk 0:02:09]} 19. Qb3 {[%clk 0:02:03.8]} 19...
b6 {[%clk 0:02:06]} 20. a5 {[%clk 0:02:03.1]} 20... Be4 {[%clk 0:01:41.6]} 21.
axb6 {[%clk 0:01:55.3]} 21... axb6 {[%clk 0:01:31.8]} 22. Rxa8 {[%clk
0:01:20.9]} 22... Rxa8 {[%clk 0:01:33.7]} 23. Bxf6 {[%clk 0:01:03.1]} 23... Bxf3
{[%clk 0:01:32]} 24. Bxg7 {[%clk 0:00:45.5]} 24... Bxd5 {[%clk 0:01:11.4]} 25.
Be5 {[%clk 0:00:13.1]} 25... Qxe5 {[%clk 0:01:08.9]} 26. Qd1 {[%clk 0:00:14.3]}
26... Qg5 {[%clk 0:01:05.6]} 27. f3 {[%clk 0:00:15.6]} 27... Be6 {[%clk
0:00:59.8]} 28. Kh1 {[%clk 0:00:14.6]} 28... Ra2 {[%clk 0:00:59.7]} 29. Qc2
{[%clk 0:00:11.2]} 29... Qf6 {[%clk 0:00:57.7]} 30. Qe4 {[%clk 0:00:09.4]} 30...
Rxb2 {[%clk 0:00:56]} 31. Qa8+ {[%clk 0:00:10.6]} 31... Kg7 {[%clk 0:00:56.8]}
32. Qe4 {[%clk 0:00:12.5]} 32... c4 {[%clk 0:00:54.7]} 33. Ra1 {[%clk
0:00:11.9]} 33... Re2 {[%clk 0:00:51.2]} 34. Qb1 {[%clk 0:00:06.9]} 34... c3
{[%clk 0:00:51.4]} 35. Ra8 {[%clk 0:00:08.1]} 35... c2 {[%clk 0:00:51.4]} 36.
Qb4 {[%clk 0:00:10]} 36... c1=Q+ {[%clk 0:00:50.8]} 37. Qe1 {[%clk 0:00:11.1]}
37... Qxe1+ {[%clk 0:00:51.1]} 0-1

[Event "*** Titled Tuesday Blitz"]
[Site "Chess.com"]
[Date "2019.05.07"]
[Round "2"]
[White "Misha_Bilous"]
[Black "IMDT02"]
[Result "1-0"]
[WhiteElo "2298"]
[BlackElo "2447"]
[TimeControl "180+2"]
[EndTime "13:23:28 PDT"]
[Termination "Misha_Bilous won by resignation"]

1. d4 {[%clk 0:03:01.9]} 1... f5 {[%clk 0:03:00.3]} 2. Nf3 {[%clk 0:03:00.8]}
2... Nf6 {[%clk 0:03:01.5]} 3. g3 {[%clk 0:03:02]} 3... e6 {[%clk 0:03:03]} 4.
Bg2 {[%clk 0:03:02.8]} 4... d5 {[%clk 0:03:04.5]} 5. O-O {[%clk 0:03:03.8]} 5...
c6 {[%clk 0:03:06.1]} 6. c4 {[%clk 0:03:02.6]} 6... Bd6 {[%clk 0:03:07.5]} 7. b3
{[%clk 0:03:02.5]} 7... Qe7 {[%clk 0:03:08.7]} 8. Bb2 {[%clk 0:03:01.4]} 8...
O-O {[%clk 0:03:09.7]} 9. Qc1 {[%clk 0:03:02.5]} 9... Nbd7 {[%clk 0:03:08.3]}
10. Ba3 {[%clk 0:03:02.8]} 10... Ne4 {[%clk 0:03:09.9]} 11. Bxd6 {[%clk
0:02:49.8]} 11... Qxd6 {[%clk 0:03:11.8]} 12. Nc3 {[%clk 0:02:46.9]} 12... b6
{[%clk 0:03:11.2]} 13. Rd1 {[%clk 0:01:40.2]} 13... Bb7 {[%clk 0:03:10.6]} 14.
Qe3 {[%clk 0:01:29.6]} 14... Rac8 {[%clk 0:03:06.2]} 15. Rac1 {[%clk 0:01:30.1]}
15... a5 {[%clk 0:01:31.1]} 16. Ne1 {[%clk 0:01:11.2]} 16... Rfe8 {[%clk
0:01:30]} 17. Nd3 {[%clk 0:00:57.5]} 17... h6 {[%clk 0:01:23.4]} 18. Na4 {[%clk
0:00:45.5]} 18... b5 {[%clk 0:01:08.8]} 19. cxb5 {[%clk 0:00:36.5]} 19... cxb5
{[%clk 0:01:10.7]} 20. Nac5 {[%clk 0:00:37.3]} 20... Ndxc5 {[%clk 0:00:55.6]}
21. dxc5 {[%clk 0:00:38.4]} 21... Qe7 {[%clk 0:00:52]} 22. f3 {[%clk 0:00:38.6]}
22... Nf6 {[%clk 0:00:37.1]} 23. Ne5 {[%clk 0:00:39.6]} 23... b4 {[%clk
0:00:38.2]} 24. c6 {[%clk 0:00:37.1]} 24... Ba6 {[%clk 0:00:39.5]} 25. Bf1
{[%clk 0:00:34.6]} 25... Qd6 {[%clk 0:00:30.9]} 26. Qd4 {[%clk 0:00:34.4]} 26...
Bb5 {[%clk 0:00:26.7]} 27. f4 {[%clk 0:00:21.4]} 27... Bxc6 {[%clk 0:00:25.7]}
28. Qb6 {[%clk 0:00:22.5]} 28... Nd7 {[%clk 0:00:19.8]} 29. Rxc6 {[%clk
0:00:20.9]} 29... Rxc6 {[%clk 0:00:15.7]} 30. Qxc6 {[%clk 0:00:21.4]} 30... Qxc6
{[%clk 0:00:16.7]} 31. Nxc6 {[%clk 0:00:22.8]} 31... Rc8 {[%clk 0:00:18.2]} 32.
Ne7+ {[%clk 0:00:23.9]} 1-0

[Event "*** Titled Tuesday Blitz"]
[Site "Chess.com"]
[Date "2019.05.07"]
[Round "2"]
[White "vladimirdamjanovic"]
[Black "GHANDEEVAM2003"]
[Result "0-1"]
[WhiteElo "2571"]
[BlackElo "2866"]
[TimeControl "180+2"]
[EndTime "13:23:32 PDT"]
[Termination "GHANDEEVAM2003 won by resignation"]

1. e4 {[%clk 0:03:01.9]} 1... e6 {[%clk 0:02:58.3]} 2. d4 {[%clk 0:03:02.2]}
2... d5 {[%clk 0:02:59.2]} 3. Nc3 {[%clk 0:03:03.3]} 3... Nf6 {[%clk 0:02:59.9]}
4. Bg5 {[%clk 0:03:03.8]} 4... Be7 {[%clk 0:03:00.7]} 5. e5 {[%clk 0:03:05.1]}
5... Nfd7 {[%clk 0:03:01.7]} 6. Bxe7 {[%clk 0:03:06.2]} 6... Qxe7 {[%clk
0:03:03.6]} 7. f4 {[%clk 0:03:07.6]} 7... a6 {[%clk 0:03:04.7]} 8. Nf3 {[%clk
0:03:09]} 8... c5 {[%clk 0:03:05.9]} 9. Qd2 {[%clk 0:03:10.4]} 9... Nc6 {[%clk
0:03:06.9]} 10. dxc5 {[%clk 0:03:11.8]} 10... Nxc5 {[%clk 0:03:04.8]} 11. O-O-O
{[%clk 0:03:12.3]} 11... b5 {[%clk 0:03:03.2]} 12. Qe3 {[%clk 0:03:12.3]} 12...
Qa7 {[%clk 0:02:48.9]} 13. Kb1 {[%clk 0:03:06.1]} 13... b4 {[%clk 0:02:42.4]}
14. Ne2 {[%clk 0:02:53.1]} 14... Bd7 {[%clk 0:02:40.2]} 15. Ned4 {[%clk
0:02:49.2]} 15... g6 {[%clk 0:02:34]} 16. g4 {[%clk 0:02:41.2]} 16... h5 {[%clk
0:02:33.2]} 17. gxh5 {[%clk 0:02:42.2]} 17... Rxh5 {[%clk 0:02:35.1]} 18. h4
{[%clk 0:02:40.1]} 18... Ne7 {[%clk 0:02:19.6]} 19. Be2 {[%clk 0:02:33.5]} 19...
Bb5 {[%clk 0:01:54.8]} 20. Ng5 {[%clk 0:01:51.9]} 20... Bxe2 {[%clk 0:01:50.6]}
21. Qxe2 {[%clk 0:01:48.1]} 21... Qb7 {[%clk 0:01:40.3]} 22. Qg4 {[%clk
0:01:36.1]} 22... a5 {[%clk 0:01:33.9]} 23. Ngxe6 {[%clk 0:01:21.5]} 23... fxe6
{[%clk 0:01:28.5]} 24. Nxe6 {[%clk 0:01:22.6]} 24... Nxe6 {[%clk 0:01:11.1]} 25.
Qxe6 {[%clk 0:01:24.5]} 25... Rc8 {[%clk 0:01:09.7]} 26. f5 {[%clk 0:01:11.5]}
26... Rxf5 {[%clk 0:01:05.9]} 27. h5 {[%clk 0:00:56.6]} 27... Qc6 {[%clk
0:01:05.2]} 28. Qxc6+ {[%clk 0:00:51.3]} 28... Rxc6 {[%clk 0:01:07.1]} 29. h6
{[%clk 0:00:51.4]} 29... Rf8 {[%clk 0:01:08.1]} 30. h7 {[%clk 0:00:47.1]} 30...
Rh8 {[%clk 0:01:08.7]} 31. Rdf1 {[%clk 0:00:46]} 31... Nf5 {[%clk 0:01:03.9]}
32. b3 {[%clk 0:00:36.6]} 32... Re6 {[%clk 0:01:03.7]} 33. Re1 {[%clk
0:00:31.6]} 33... Kf7 {[%clk 0:01:03.4]} 34. a3 {[%clk 0:00:22]} 34... Kg7
{[%clk 0:00:55.5]} 35. axb4 {[%clk 0:00:22.1]} 35... axb4 {[%clk 0:00:57.4]} 36.
Rhg1 {[%clk 0:00:21.6]} 36... Rxh7 {[%clk 0:00:54.7]} 37. Rg4 {[%clk 0:00:23.2]}
37... Rh4 {[%clk 0:00:56.1]} 38. Rg2 {[%clk 0:00:23.7]} 38... Re4 {[%clk
0:00:55.7]} 39. Rf1 {[%clk 0:00:24.3]} 39... Ne3 {[%clk 0:00:51.2]} 0-1

[Event "*** Titled Tuesday Blitz"]
[Site "Chess.com"]
[Date "2019.05.07"]
[Round "2"]
[White "nonscitis"]
[Black "GMKrikor"]
[Result "1-0"]
[WhiteElo "2574"]
[BlackElo "2769"]
[TimeControl "180+2"]
[EndTime "13:23:33 PDT"]
[Termination "nonscitis won by resignation"]

1. d4 {[%clk 0:03:01.9]} 1... Nf6 {[%clk 0:03:00.7]} 2. c4 {[%clk 0:03:00.4]}
2... e6 {[%clk 0:02:58]} 3. Nf3 {[%clk 0:03:00.5]} 3... Bb4+ {[%clk 0:02:49.9]}
4. Bd2 {[%clk 0:03:00.1]} 4... a5 {[%clk 0:02:51.2]} 5. g3 {[%clk 0:03:00]} 5...
d6 {[%clk 0:02:52.4]} 6. Bg2 {[%clk 0:03:00.5]} 6... Nbd7 {[%clk 0:02:53.5]} 7.
O-O {[%clk 0:03:00.8]} 7... e5 {[%clk 0:02:54.5]} 8. Bg5 {[%clk 0:02:57.4]} 8...
exd4 {[%clk 0:02:51.2]} 9. Nxd4 {[%clk 0:02:53.7]} 9... O-O {[%clk 0:02:49.3]}
10. a3 {[%clk 0:02:53.9]} 10... Bc5 {[%clk 0:02:48.9]} 11. Nc3 {[%clk
0:02:54.5]} 11... h6 {[%clk 0:02:43.4]} 12. Bf4 {[%clk 0:02:54.8]} 12... a4
{[%clk 0:02:32.7]} 13. Rc1 {[%clk 0:02:24.7]} 13... Re8 {[%clk 0:02:22.1]} 14.
e4 {[%clk 0:02:12.1]} 14... Nb6 {[%clk 0:02:09.4]} 15. Qd3 {[%clk 0:02:11.4]}
15... Ng4 {[%clk 0:02:10.5]} 16. Nf3 {[%clk 0:01:57.3]} 16... Ne5 {[%clk
0:02:06.5]} 17. Bxe5 {[%clk 0:01:47.1]} 17... dxe5 {[%clk 0:02:08.4]} 18. Qxd8
{[%clk 0:01:47.5]} 18... Rxd8 {[%clk 0:02:09.5]} 19. Nxe5 {[%clk 0:01:48.2]}
19... c6 {[%clk 0:01:59]} 20. Rfd1 {[%clk 0:01:34.1]} 20... Be6 {[%clk
0:01:56.8]} 21. Bf1 {[%clk 0:01:30.7]} 21... f6 {[%clk 0:01:16.5]} 22. Nd3
{[%clk 0:00:52.2]} 22... Bd4 {[%clk 0:01:12.6]} 23. Nf4 {[%clk 0:00:51.8]} 23...
Bxc4 {[%clk 0:01:03.2]} 24. Bxc4+ {[%clk 0:00:49]} 24... Nxc4 {[%clk 0:01:03.8]}
25. Ne6 {[%clk 0:00:50.1]} 25... Bxc3 {[%clk 0:00:55.2]} 26. Rxd8+ {[%clk
0:00:48.5]} 26... Rxd8 {[%clk 0:00:56]} 27. Nxd8 {[%clk 0:00:49.6]} 27... Bxb2
{[%clk 0:00:37.2]} 28. Rxc4 {[%clk 0:00:49.5]} 28... b5 {[%clk 0:00:38.6]} 29.
Rxc6 {[%clk 0:00:42.7]} 29... Bxa3 {[%clk 0:00:36.6]} 30. Ra6 {[%clk 0:00:43]}
30... Bf8 {[%clk 0:00:19.8]} 31. Nc6 {[%clk 0:00:38.9]} 31... a3 {[%clk
0:00:20.7]} 32. Nd4 {[%clk 0:00:39.4]} 32... b4 {[%clk 0:00:21]} 33. Nb3 {[%clk
0:00:40.5]} 33... Kf7 {[%clk 0:00:18.3]} 34. Kf1 {[%clk 0:00:41.6]} 34... Ke8
{[%clk 0:00:19.7]} 35. Ke2 {[%clk 0:00:43]} 35... Kd7 {[%clk 0:00:21.4]} 36. Kd3
{[%clk 0:00:44.1]} 36... Kc7 {[%clk 0:00:23]} 37. Kc4 {[%clk 0:00:44.5]} 1-0

[Event "*** Titled Tuesday Blitz"]
[Site "Chess.com"]
[Date "2019.05.07"]
[Round "2"]
[White "Satscho"]
[Black "SoltaniciR"]
[Result "0-1"]
[WhiteElo "2299"]
[BlackElo "2496"]
[TimeControl "180+2"]
[EndTime "13:23:35 PDT"]
[Termination "SoltaniciR won by resignation"]

1. e4 {[%clk 0:03:01.9]} 1... c5 {[%clk 0:03:00.4]} 2. Nf3 {[%clk 0:03:01.9]}
2... d6 {[%clk 0:02:59.8]} 3. Bb5+ {[%clk 0:03:01.1]} 3... Nd7 {[%clk 0:03:00]}
4. c3 {[%clk 0:03:00.7]} 4... Nf6 {[%clk 0:03:00.1]} 5. Qe2 {[%clk 0:03:01.4]}
5... a6 {[%clk 0:02:59.8]} 6. Ba4 {[%clk 0:03:02.3]} 6... b5 {[%clk 0:03:00.8]}
7. Bc2 {[%clk 0:03:03.1]} 7... Bb7 {[%clk 0:03:01.3]} 8. O-O {[%clk 0:03:04]}
8... Qc7 {[%clk 0:02:55.1]} 9. d3 {[%clk 0:03:03]} 9... g6 {[%clk 0:02:49.5]}
10. Re1 {[%clk 0:03:00]} 10... Bg7 {[%clk 0:02:49.7]} 11. Nbd2 {[%clk
0:02:50.9]} 11... O-O {[%clk 0:02:48.4]} 12. Nf1 {[%clk 0:02:31.4]} 12... e5
{[%clk 0:02:46.9]} 13. h3 {[%clk 0:02:22.2]} 13... Rfe8 {[%clk 0:02:47.5]} 14.
N3h2 {[%clk 0:02:21.8]} 14... d5 {[%clk 0:02:47.7]} 15. Ng4 {[%clk 0:02:19.3]}
15... c4 {[%clk 0:02:40.6]} 16. dxc4 {[%clk 0:02:15.8]} 16... Nxg4 {[%clk
0:02:26]} 17. hxg4 {[%clk 0:02:02.2]} 17... dxc4 {[%clk 0:02:27]} 18. g5 {[%clk
0:01:43.4]} 18... Nc5 {[%clk 0:02:26.2]} 19. b4 {[%clk 0:01:31.9]} 19... Ne6
{[%clk 0:02:09.5]} 20. Qg4 {[%clk 0:01:25.4]} 20... Rad8 {[%clk 0:02:03.5]} 21.
Nh2 {[%clk 0:01:23.7]} 21... Nf4 {[%clk 0:02:00.6]} 22. Bxf4 {[%clk 0:01:16.2]}
22... exf4 {[%clk 0:01:59.1]} 23. Rad1 {[%clk 0:01:02.2]} 23... Bxc3 {[%clk
0:01:56.7]} 24. Rf1 {[%clk 0:00:54.8]} 24... Bxb4 {[%clk 0:01:54.3]} 25. Qh4
{[%clk 0:00:53.6]} 25... Bc8 {[%clk 0:01:44.2]} 26. Nf3 {[%clk 0:00:36.7]} 26...
Bc3 {[%clk 0:01:40.7]} 27. Rd5 {[%clk 0:00:31.8]} 27... Be6 {[%clk 0:01:39.8]}
28. Rxd8 {[%clk 0:00:28.8]} 28... Rxd8 {[%clk 0:01:40.4]} 29. g3 {[%clk
0:00:24.1]} 29... fxg3 {[%clk 0:01:28.9]} 30. Kg2 {[%clk 0:00:25.1]} 30... b4
{[%clk 0:01:09.5]} 31. Rh1 {[%clk 0:00:22.1]} 31... b3 {[%clk 0:01:10]} 32.
Qxh7+ {[%clk 0:00:18.2]} 32... Kf8 {[%clk 0:01:11.1]} 33. axb3 {[%clk
0:00:18.7]} 33... cxb3 {[%clk 0:01:11.3]} 34. e5 {[%clk 0:00:19.5]} 34... Bxe5
{[%clk 0:01:11.4]} 35. Nxe5 {[%clk 0:00:18.4]} 35... Qxe5 {[%clk 0:01:12.1]} 36.
Bxg6 {[%clk 0:00:18.2]} 36... gxf2 {[%clk 0:00:52.3]} 37. Qh6+ {[%clk
0:00:14.1]} 37... Qg7 {[%clk 0:00:52.5]} 0-1